Cogmind - Beta 10.2 @@@ ROGUE MODE // 2021.03.20 @ 14:14:46 Player: whisper Result: Destroyed by S-43 Plague with Heavy Machine Gun Performance ------------- Evolutions (6) 3000 Regions Visited (19) 3800 Robots Destroyed (169) 845 Value Destroyed (6519) 6519 Prototype IDs (40) 800 Alien Tech Used (0) 0 Bonus (4563) 4563 TOTAL SCORE: 19527 Bonus ------- High Alert Combat Kills 208 Follower Combat Kills 1164 Network Hubs Disabled 200 Aligned with FarCom 300 Met Warlord at Base 500 MAIN.C Attacked Warlord 500 Warlord Defense Kill 2538 Built Enhanced Grunts 300 A7 Reached Mainframe 300 Friendly Fire -1447 Cogmind --------- Core Integrity 0/1150 Matter 300/300 Energy 99/100 System Corruption 0% Temperature Cool (0) Movement Core (50) Location -3/Proximity Caves Parts ------- > --- POWER (2) -------- (None) > --- PROPULSION (4) --- (None) > --- UTILITY (7) ------ (None) > --- WEAPON (6) ------- (None) > --- INVENTORY (4) ---- Energy Well (500) High-capacity Matter Pod (200) Neutron Cannon Peak State ------------ > --- POWER ------------ Micro Fission Core Micro Fission Core > --- PROPULSION ------- Centrium Heavy Treads Armored Huge Wheel > --- UTILITY ---------- Coolant Injector High-capacity Storage Unit High-capacity Storage Unit Long-range Terrain Scanner Improved Targeting Computer Hardened Medium Armor Plating Centrium Light Armor Plating > --- WEAPON ----------- Vortex Rifle Hypervelocity Coil Gun Railgun Improved KE Penetrator Vortex Catalyst Activator > --- INVENTORY -------- Armored Medium Treads Large Storage Unit Energy Well High-capacity Matter Pod Improved Armor Integrity Analyzer Improved Kinecellerator Weapon Cycler Layered Medium Armor Plating Centrium Medium Armor Plating Centrium Medium Armor Plating Centrium Medium Armor Plating Reflective Plating Advanced Shield Generator Vortex Rifle Neutron Cannon KE Penetrator Bore Cannon Heavy Rocket Launcher Phasing Sabre Plasma Lance [Rating: 120] Favorites ----------- Power Micro Fission Core Engine Ion Engine Power Core Micro Fission Core Propulsion Armored Huge Wheel Treads Centrium Heavy Treads Leg Aluminum Leg Wheel Armored Huge Wheel Hover Unit Combat Airjet Utility Large Storage Unit Device Long-range Terrain Scanner Storage Large Storage Unit Processor Improved Targeting Computer Hackware Hacking Suite Protection Layered Medium Armor Plating Weapon Gauss Rifle Energy Gun Gatling Laser Energy Cannon Heavy Ion Cannon Ballistic Gun Gauss Rifle Launcher Heavy Rocket Launcher Impact Weapon Powered Hammer Slashing Weapon Chainsword Piercing Weapon CR-A16's Pointy Stick Build | -11 -10 -10 -10 -9 -8 -7 -7 -6 -5 -5 -5 -5 -5 -5 -4 -4 -4 -4 -3 ------- Run | Scr Mat Min Exi Min Mat Fac Low Zio Pro Fac Ext Cet Arc Hub Fac Upp Upp War Pro Slots Evolved 12 | . . . . . 4 2 . . . 4 . . . . 2 . . . . Power 1 | . . . . . . . . . . . . . . . 1 . . . . Propulsion 2 | . . . . . . . . . . 2 . . . . . . . . . Utility 5 | . . . . . . 2 . . . 2 . . . . 1 . . . . Weapon 4 | . . . . . 4 . . . . . . . . . . . . . . Parts Attached 160 | 6 10 8 2 2 32 21 . 3 8 10 9 8 . 4 3 6 7 18 3 Power 10 | 1 1 1 . . 2 2 . . . 1 . . . . . 1 1 . . Engine 4 | 1 1 1 . . 1 . . . . . . . . . . . . . . Core 6 | . . . . . 1 2 . . . 1 . . . . . 1 1 . . Reactor . | . . . . . . . . . . . . . . . . . . . . Propulsion 25 | 2 . 4 . . 4 3 . . . 3 2 1 . . 1 . . 4 1 Treads 13 | . . 2 . . 2 . . . . 2 2 1 . . . . . 4 . Leg 2 | 2 . . . . . . . . . . . . . . . . . . . Wheel 8 | . . . . . 2 3 . . . 1 . . . . 1 . . . 1 Hover 2 | . . 2 . . . . . . . . . . . . . . . . . Flight . | . . . . . . . . . . . . . . . . . . . . Utility 54 | 1 4 . 2 . 6 7 . 1 3 3 4 5 . 2 1 3 6 6 . Device 16 | . . . . . 2 3 . . 1 . . 1 . 1 1 2 4 1 . Storage 13 | 1 4 . 2 . 2 1 . . 1 . 1 . . . . . 1 . . Processor 2 | . . . . . 1 . . . . . . . . . . . . 1 . Hackware 3 | . . . . . . 1 . . . 1 . 1 . . . . . . . Protection 20 | . . . . . 1 2 . 1 1 2 3 3 . 1 . 1 1 4 . Artifact . | . . . . . . . . . . . . . . . . . . . . Weapon 71 | 2 5 3 . 2 20 9 . 2 5 3 3 2 . 2 1 2 . 8 2 Energy Gun 10 | 1 . 3 . 1 . 1 . . 1 1 . . . . . . . 2 . Energy Cannon 1 | . . . . . . 1 . . . . . . . . . . . . . Ballistic Gun 41 | 1 5 . . . 18 5 . 2 2 1 1 2 . 1 . 2 . 1 . Ballistic Cannon . | . . . . . . . . . . . . . . . . . . . . Launcher 10 | . . . . 1 2 1 . . . 1 1 . . . 1 . . 3 . Special Weapon . | . . . . . . . . . . . . . . . . . . . . Impact Weapon 1 | . . . . . . 1 . . . . . . . . . . . . . Slashing Weapon 6 | . . . . . . . . . 1 . 1 . . 1 . . . 1 2 Piercing Weapon 2 | . . . . . . . . . 1 . . . . . . . . 1 . Special Melee Weapon . | . . . . . . . . . . . . . . . . . . . . Unidentified Prototypes 10 | . . . . . 2 . . . . . . 4 . . . . . 4 . Parts Lost 35 | . 1 3 . . 1 2 . . 7 1 . . . . . 2 . 16 2 Power 5 | . 1 . . . . 2 . . 1 . . . . . . . . 1 . Propulsion 6 | . . 2 . . . . . . . . . . . . . . . 3 1 Utility 5 | . . . . . . . . . 1 . . . . . . . . 4 . Weapon 19 | . . 1 . . 1 . . . 5 1 . . . . . 2 . 8 1 Highest Loss Streak 14 | . 1 3 . . 1 1 . . 7 1 . . . . . 2 . 14 2 Average Slot Usage (%) 88 | . 96 96 100 100 99 92 . 92 79 84 93 87 88 87 84 87 88 86 . Engine 2 | . 13 14 14 14 1 . . . . . . . . . . . . . . Core 5 | . . . . . 7 6 . 7 3 1 5 5 5 5 5 8 10 9 . Treads 4 | . . 3 . . 6 4 . . . 11 11 5 5 5 5 5 5 5 . Leg 2 | . 28 8 . . . . . . . . . . . . . . . . . Wheel 4 | . . . . . 6 7 . 7 7 4 5 5 5 5 5 5 5 4 . Hover 2 | . . 13 28 28 4 . . . . . . . . . . . . . . Device 3 | . . . . . 3 1 . . 1 3 . . . 4 10 11 10 9 . Storage 14 | . 25 28 28 28 13 15 . 15 15 11 11 11 11 11 10 10 10 10 . Hackware 3 | . . . . . . 2 . 7 7 11 10 8 11 9 5 5 5 . . Protection 5 | . . . . . . 6 . 6 5 7 10 11 11 6 10 8 9 9 . Energy Gun 3 | . 2 18 28 28 . 2 . 5 1 4 5 . . . . . . 1 . Ballistic Gun 27 | . 25 8 . . 53 37 . 33 30 12 21 27 29 29 26 25 26 22 . Launcher 1 | . . . . . . . . . . 4 3 5 5 3 3 5 5 4 . Impact Weapon 1 | . . . . . . 3 . 5 . . . . . . . . . . . Naked Turns 384 | . . . . . . . . . . . . . . . . . . 2 382 Heaviest Build 139 | 13 41 43 41 41 59 67 61 64 68 92 110 111 101 104 109 113 132 139 4 Greatest Support 80 | 20 20 44 44 44 44 28 28 28 28 28 45 28 80 80 28 80 80 50 12 Greatest Overweight (x) 14 | . 2 14 . . 4 4 2 2 2 3 3 3 3 3 3 4 4 4 . Average Overweight (x) 2 | . . . . . 1 2 2 2 1 2 2 3 1 1 3 3 3 3 . Largest Inventory Capacity 26 | 6 16 16 16 16 16 16 16 16 18 18 18 18 18 18 18 18 26 20 4 Average Capacity 15 | 5 10 16 16 16 12 16 16 16 16 18 18 18 18 18 18 18 19 19 4 Most Carried 20 | 6 16 16 16 16 16 16 16 16 16 18 18 18 18 18 18 18 20 20 4 Average Carried 15 | 3 8 15 15 16 11 15 16 15 15 13 17 17 18 17 17 16 19 19 3 Final Capacity 20 | 6 16 16 16 16 16 16 16 16 18 18 18 18 18 18 18 18 20 4 4 Final Carried 20 | 6 15 16 16 16 16 16 16 16 16 18 18 18 18 18 18 16 20 4 3 Class Distribution -------------------- 24% | Mutant 21% | Scavenger-Executioner 17% | Executioner 8% | Tank 5% | Scavenger-Mutant 3% | Derelict-Mutant 3% | Skirmisher Dominant Class ---------------- Mutant | -10/Materials Mutant | -10/Mines Mutant | -10/Exiles Mutant | -9/Mines Executioner | -8/Materials Executioner | -7/Factory Executioner | -7/Lower Caves Tank | -6/Zion Executioner | -5/Proximity Caves Derelict-Mutant | -5/Factory Hacker-Executioner | -5/Extension Scavenger-Executioner | -5/Cetus Scavenger-Executioner | -5/Archives Scavenger-Executioner | -5/Hub_04(d) Scavenger-Executioner | -4/Factory Scavenger-Executioner | -4/Upper Caves Scavenger-Mutant | -4/Upper Caves Scavenger-Executioner | -4/Warlord Mutant | -3/Proximity Caves Resources | -11 -10 -10 -10 -9 -8 -7 -7 -6 -5 -5 -5 -5 -5 -5 -4 -4 -4 -4 -3 ----------- Run | Scr Mat Min Exi Min Mat Fac Low Zio Pro Fac Ext Cet Arc Hub Fac Upp Upp War Pro Matter Collected 5754 | 229 357 150 . 50 1878 765 . 30 65 315 424 158 98 140 106 341 198 378 72 Remotely . | . . . . . . . . . . . . . . . . . . . . Salvage Created 7192 | . 448 319 . 21 1668 854 . . 81 525 690 184 263 331 159 542 202 905 . Parts 377 | . 34 9 . 5 111 49 . . 4 16 28 5 13 21 8 17 18 39 . Haulers Intercepted 8 | . 1 . . . 3 3 . . . 1 . . . . . . . . . Recyclers Shooed 5 | . 2 . . . 1 . . . . 1 1 . . . . . . . . Parts Field Recycled . | . . . . . . . . . . . . . . . . . . . . Retrieved Matter . | . . . . . . . . . . . . . . . . . . . . Parts Self-Destructed 149 | . . . . . . . . 1 2 . . . . . . 11 14 121 . Prevented 28 | . . . . . . . . . . . . . . . . . . 28 . Kills | -11 -10 -10 -10 -9 -8 -7 -7 -6 -5 -5 -5 -5 -5 -5 -4 -4 -4 -4 -3 ------- Run | Scr Mat Min Exi Min Mat Fac Low Zio Pro Fac Ext Cet Arc Hub Fac Upp Upp War Pro Combat Hostiles Destroyed 123 | . 11 3 . 3 25 13 . . 1 10 8 3 3 1 4 12 7 19 . Melee 1 | . . . . . . . . . 1 . . . . . . . . . . Guns 71 | . 11 3 . . 19 10 . . . 3 4 1 3 1 . 5 3 8 . AOE 51 | . . . . 3 6 3 . . . 7 4 2 . . 4 7 4 11 . Classes Destroyed 20 | . 7 1 . . 4 2 . . 1 1 . . . . . 1 . 3 . Worker 2 | . . . . . 1 . . . . . . . . . 1 . . . . Builder 3 | . 1 . . . 1 . . . . . . . . 1 . . . . . Tunneler 1 | . . . . . . . . . . 1 . . . . . . . . . Hauler 8 | . 1 . . . 3 3 . . . 1 . . . . . . . . . Recycler 15 | . 1 2 . . 4 4 . . . 1 2 . . . 1 . . . . Mechanic 2 | . . . . . . 1 . . . . . . . . . . . 1 . Operator 6 | . 1 . . . 3 1 . . . . . . . 1 . . . . . Watcher 5 | . 1 . . . 2 . . . . 1 . . . 1 . . . . . Swarmer 37 | . 8 . . 3 7 9 . . . . . . . . 4 1 4 1 . Grunt 48 | . 3 2 . . 7 1 . . . 9 6 2 . . . 7 1 10 . Brawler 2 | . . . . . 1 . . . . . . . . . . . . 1 . Duelist 2 | . . . . . . . . . . . . . . . . 2 . . . Protector 2 | . . . . . . . . . . . . . . . . . . 2 . Sentry 17 | . . . . . 7 2 . . . 1 1 . 3 1 . 1 . 1 . Demolisher 1 | . . 1 . . . . . . . . . . . . . . . . . Specialist 1 | . . . . . . . . . . . . . . . . . . 1 . Hunter 4 | . . . . . 3 . . . . . 1 . . . . . . . . Programmer 7 | . . . . . . 1 . . . . . . . . . 1 2 3 . Behemoth 1 | . . . . . . . . . 1 . . . . . . . . . . Cetus Guard 1 | . . . . . . . . . . . . 1 . . . . . . . Enhanced Grunt 1 | . . . . . . . . . . . . . . 1 . . . . . Striker 1 | . . . . . . . . . . . . . . . . . . 1 . Surgeon 1 | . . . . . . . . . . . . . . . . . . 1 . Thug 1 | . . . . . . . . . . . . . . 1 . . . . . Best Kill Streak 10 | . 5 2 . 3 6 5 . . 1 10 5 2 3 2 5 7 4 10 . Combat Bots Only 10 | . 3 2 . 3 4 4 . . 1 7 5 2 3 1 4 7 4 10 . Max Kills in Single Turn 4 | . 2 1 . 3 3 2 . . 1 3 2 2 1 4 3 3 4 3 . Gunslinging 1 | . 1 . . . . . . . . . . . . . . 1 1 1 . Exploded 4 | . . . . 3 2 2 . . . 3 2 2 . . 2 3 4 3 . Melee 1 | . . . . . . . . . 1 . . . . . . . . . . Uniques/NPCs Destroyed . | . . . . . . . . . . . . . . . . . . . . Combat | -11 -10 -10 -10 -9 -8 -7 -7 -6 -5 -5 -5 -5 -5 -5 -4 -4 -4 -4 -3 -------- Run | Scr Mat Min Exi Min Mat Fac Low Zio Pro Fac Ext Cet Arc Hub Fac Upp Upp War Pro Damage Taken 10707 | . 378 486 . 33 1181 707 . . 1547 457 252 49 127 98 75 825 141 3567 784 Core 1881 | . 32 66 . 13 105 65 . . 273 36 65 . 26 49 . . . 554 597 Absorbed by Shields 371 | . . . . . . . . . . . . 48 . . . . 31 292 . Core Remaining (%) 73 | 100 . . . 55 80 . . . 51 . . . . 82 . . . . . Volleys Fired 297 | . 52 20 . 1 65 41 . . . 24 25 5 5 5 5 17 7 25 . Largest 6 | . 2 2 . 1 6 6 . . . 4 5 4 5 5 5 5 5 5 . Hottest 229 | . 70 90 . 30 160 229 . . . 170 203 122 164 164 164 166 173 178 . Shots Fired 958 | . 104 37 . 1 325 160 . . . 45 70 17 25 25 9 54 27 59 . Gun 903 | . 104 37 . . 322 153 . . . 37 61 16 25 25 5 47 25 46 . Cannon 4 | . . . . . . 4 . . . . . . . . . . . . . Launcher 51 | . . . . 1 3 3 . . . 8 9 1 . . 4 7 2 13 . Special . | . . . . . . . . . . . . . . . . . . . . Kinetic 843 | . 97 26 . . 322 136 . . . 34 45 16 25 25 5 47 25 40 . Thermal 47 | . 7 . . . . 21 . . . 3 16 . . . . . . . . Explosive 47 | . . . . 1 3 3 . . . 8 9 1 . . 4 7 2 9 . Electromagnetic 11 | . . 11 . . . . . . . . . . . . . . . . . Entropic 10 | . . . . . . . . . . . . . . . . . . 10 . Robot Hit Streak 22 | . 8 8 . . 9 13 . . . 18 22 21 3 3 6 9 10 11 . Robot Miss Streak 9 | . 9 4 . . 7 6 . . . 2 4 2 3 2 1 4 1 3 . Penetration Max 2 | . . . . . 1 . . . . . 1 1 1 . . . . 2 . Secondary Targets 13 | . 3 . . . 2 1 . . . 1 . . . . . 2 1 3 . Max Gunslinging Chain 1 | . 1 . . . 1 1 . . . 1 . . . . . 1 1 1 . Shots Hit Robots 555 | . 60 24 . . 164 84 . . 15 32 39 14 11 10 6 35 22 37 2 Core Hits 343 | . 22 12 . 3 63 40 . . 3 34 28 14 11 11 8 27 13 54 . Critical Hits 31 | . . . . . 1 1 . . . 1 1 1 3 1 1 1 5 15 . Critical Kills 11 | . . . . . 1 . . . . . . . 2 1 . 1 2 4 . Critical Parts Destroyed 16 | . . . . . . 1 . . . 1 1 . . . 1 . 3 9 . Melee Attacks 27 | . . . . . . 4 . . 20 1 . . . . . . . . 2 Impact 4 | . . . . . . 4 . . . . . . . . . . . . . Slashing 3 | . . . . . . . . . . 1 . . . . . . . . 2 Piercing 20 | . . . . . . . . . 20 . . . . . . . . . . Sneak Attacks 1 | . . . . . . 1 . . . . . . . . . . . . . Combat Hostiles . | . . . . . . . . . . . . . . . . . . . . Follow-up Attacks . | . . . . . . . . . . . . . . . . . . . . Damage Inflicted 20777 | . 699 286 . 134 2848 2193 . . 491 1934 1196 781 455 659 768 1829 786 5635 83 Guns 9879 | . 699 286 . . 2492 1416 . . . 647 793 544 452 268 76 714 487 1005 . Cannons 95 | . . . . . . 95 . . . . . . . . . . . . . Explosions 10118 | . . . . 134 356 574 . . . 1287 403 237 . 391 692 1115 299 4630 . Melee 682 | . . . . . . 108 . . 491 . . . . . . . . . 83 Ramming 3 | . . . . . . . . . . . . . 3 . . . . . . Kinetic 8837 | . 636 190 . . 2492 1034 . . . 577 550 544 452 268 76 714 487 817 . Thermal 1304 | . 63 . . . . 734 . . . 264 243 . . . . . . . . Explosive 6753 | . . . . 134 356 317 . . . 1093 403 237 . . 692 1115 299 2107 . Electromagnetic 487 | . . 96 . . . . . . . . . . . 391 . . . . . Impact 108 | . . . . . . 108 . . . . . . . . . . . . . Slashing 83 | . . . . . . . . . . . . . . . . . . . 83 Piercing 491 | . . . . . . . . . 491 . . . . . . . . . . Entropic 2711 | . . . . . . . . . . . . . . . . . . 2711 . Highest Corruption 1 | . . . . . . 1 1 1 . . . . . 1 . 1 1 1 . Average Corruption 1 | . . . . . . 1 1 1 . . . . . 1 . 1 1 1 . Corruption Purged . | . . . . . . . . . . . . . . . . . . . . Effects 6 | . . . . . . 2 . 1 . . . . . 1 . 1 1 . . Message Errors 4 | . . . . . . 1 . 1 . . . . . 1 . . 1 . . Energy Discharges 2 | . . . . . . 1 . . . . . . . . . 1 . . . Overload Shots . | . . . . . . . . . . . . . . . . . . . . Overflow Damage 626 | . . . . . 16 217 . . . 13 . . . . 61 23 . 296 . Projectiles 17 | . . . . . . 17 . . . . . . . . . . . . . Explosions 531 | . . . . . 16 122 . . . 13 . . . . 61 23 . 296 . Melee 78 | . . . . . . 78 . . . . . . . . . . . . . Knockbacks 2 | . . . . . . 2 . . . . . . . . . . . . . Impact 1 | . . . . . . 1 . . . . . . . . . . . . . Kinetic . | . . . . . . . . . . . . . . . . . . . . Secondary 1 | . . . . . . 1 . . . . . . . . . . . . . Self-Inflicted Damage 531 | . . . . 26 35 . . . . 2 . . . 99 7 107 20 235 . Shots 13 | . . . . 1 2 . . . . 1 . . . 1 1 3 1 3 . Rammed 1 | . . . . . . . . . . . . . 1 . . . . . . Targets Rammed 1 | . . . . . . . . . . . . . 1 . . . . . . Kicked . | . . . . . . . . . . . . . . . . . . . . Crushed . | . . . . . . . . . . . . . . . . . . . . Highest Temperature 418 | . 27 72 . . 418 325 . . . 192 236 160 128 87 93 256 364 194 . Average Temperature 88 | . 6 21 . . 143 82 . . . 76 64 70 62 48 46 102 123 85 . Received Heat Transfer 1427 | . 108 102 . . 342 72 . . 240 144 84 4 9 . . 78 21 223 . Effects 8 | . . . . . 2 3 . . . . . . . . . 3 . . . Shutdowns 1 | . . . . . 1 . . . . . . . . . . . . . . Energy Bleed 1 | . . . . . 1 . . . . . . . . . . . . . . Interference 6 | . . . . . . 3 . . . . . . . . . 3 . . . Siege Activations . | . . . . . . . . . . . . . . . . . . . . Robots Corrupted . | . . . . . . . . . . . . . . . . . . . . Combat Hostiles . | . . . . . . . . . . . . . . . . . . . . Parts Fried . | . . . . . . . . . . . . . . . . . . . . Impact Corruptions 2 | . . . . . . 2 . . . . . . . . . . . . . Robots Melted . | . . . . . . . . . . . . . . . . . . . . Combat Hostiles . | . . . . . . . . . . . . . . . . . . . . Parts Melted 1 | . . . . . . 1 . . . . . . . . . . . . . Heat Transferred 1965 | . 185 . . . . 1136 . . . 274 370 . . . . . . . . Parts Sabotaged 8 | . . . . . . . . . . . . . . . . . . 8 . Parts Stolen . | . . . . . . . . . . . . . . . . . . . . Parts Stripped . | . . . . . . . . . . . . . . . . . . . . Power Chain Reactions . | . . . . . . . . . . . . . . . . . . . . Missiles Intercepted . | . . . . . . . . . . . . . . . . . . . . Alert | -11 -10 -10 -10 -9 -8 -7 -7 -6 -5 -5 -5 -5 -5 -5 -4 -4 -4 -4 -3 ------- Run | Scr Mat Min Exi Min Mat Fac Low Zio Pro Fac Ext Cet Arc Hub Fac Upp Upp War Pro Peak Influence 923 | . 202 111 . 70 466 425 . . . 291 486 522 421 923 647 . . . . Initial 442 | . . 51 . . 27 161 . . . . 142 264 208 147 442 . . . . Average 233 | . 67 96 . 69 265 223 . . . 148 307 350 387 449 529 . . . . Maximum Alert Level 3 | . 1 . . . 2 2 . . . 1 2 2 2 3 2 . . . . Low Security (%) 49 | 100 99 100 . 100 27 52 . . . 69 21 2 . 27 . . . . . Level 1 31 | . . . . . 59 37 . . . 30 50 63 24 16 . . . . . Level 2 17 | . . . . . 12 10 . . . . 27 33 75 36 100 . . . . Level 3 . | . . . . . . . . . . . . . . 18 . . . . . Level 4 . | . . . . . . . . . . . . . . . . . . . . Level 5 . | . . . . . . . . . . . . . . . . . . . . High Security . | . . . . . . . . . . . . . . . . . . . . Max Security . | . . . . . . . . . . . . . . . . . . . . Squads Dispatched 14 | . 2 . . . 2 6 . . . 2 . . . 2 . . . . . Investigation 3 | . 1 . . . 1 . . . . 1 . . . . . . . . . Extermination 3 | . . . . . . 2 . . . . . . . 1 . . . . . Reinforcement 5 | . 1 . . . 1 1 . . . 1 . . . 1 . . . . . Assault . | . . . . . . . . . . . . . . . . . . . . Garrison 3 | . . . . . . 3 . . . . . . . . . . . . . Intercept . | . . . . . . . . . . . . . . . . . . . . Construction Impeded . | . . . . . . . . . . . . . . . . . . . . Haulers Reinforced 1 | . . . . . . . . . . 1 . . . . . . . . . Stealth | -11 -10 -10 -10 -9 -8 -7 -7 -6 -5 -5 -5 -5 -5 -5 -4 -4 -4 -4 -3 --------- Run | Scr Mat Min Exi Min Mat Fac Low Zio Pro Fac Ext Cet Arc Hub Fac Upp Upp War Pro Distress Signals 11 | . 1 . . . 4 2 . . . 1 1 1 . . . . . 1 . Communications Jammed . | . . . . . . . . . . . . . . . . . . . . Distress Signals . | . . . . . . . . . . . . . . . . . . . . Times Spotted 224 | . 21 11 . 3 35 19 . . 1 12 19 11 7 10 4 11 10 43 7 Peak Tracking Total 18 | . 4 8 . 3 6 6 . . 1 7 5 6 2 4 4 7 4 18 7 Tactical Retreats 8 | . 1 . . . . 2 . . . . . . . . . . 1 4 . Traps | -11 -10 -10 -10 -9 -8 -7 -7 -6 -5 -5 -5 -5 -5 -5 -4 -4 -4 -4 -3 ------- Run | Scr Mat Min Exi Min Mat Fac Low Zio Pro Fac Ext Cet Arc Hub Fac Upp Upp War Pro Traps Triggered 4 | . . . . . . 2 . . . . 2 . . . . . . . . Indirectly . | . . . . . . . . . . . . . . . . . . . . Trap Hack Attempts . | . . . . . . . . . . . . . . . . . . . . Triggered . | . . . . . . . . . . . . . . . . . . . . Disarmed . | . . . . . . . . . . . . . . . . . . . . Reprogrammed . | . . . . . . . . . . . . . . . . . . . . Reused . | . . . . . . . . . . . . . . . . . . . . Traps Extracted . | . . . . . . . . . . . . . . . . . . . . Installed . | . . . . . . . . . . . . . . . . . . . . Triggered 20 | . . . . . . . . . . . . . . . . . . 20 . Machines | -11 -10 -10 -10 -9 -8 -7 -7 -6 -5 -5 -5 -5 -5 -5 -4 -4 -4 -4 -3 ---------- Run | Scr Mat Min Exi Min Mat Fac Low Zio Pro Fac Ext Cet Arc Hub Fac Upp Upp War Pro Machines Disabled 37 | . 1 . . . 5 8 . . . 5 . 3 3 9 1 . . 2 . Max in Single Turn 7 | . 1 . . . 2 4 . . . 4 . 1 1 7 1 . . 1 . Garrison Access 1 | . . . . . . . . . . 1 . . . . . . . . . Network Hub 1 | . . . . . . . . . . . . . . 1 . . . . . Machines Sabotaged . | . . . . . . . . . . . . . . . . . . . . Garrisons Compromised . | . . . . . . . . . . . . . . . . . . . . Overloaded Fab Kills . | . . . . . . . . . . . . . . . . . . . . Fab Network Shutdowns . | . . . . . . . . . . . . . . . . . . . . Hacking | -11 -10 -10 -10 -9 -8 -7 -7 -6 -5 -5 -5 -5 -5 -5 -4 -4 -4 -4 -3 --------- Run | Scr Mat Min Exi Min Mat Fac Low Zio Pro Fac Ext Cet Arc Hub Fac Upp Upp War Pro Machines Accessed 45 | . 8 . 2 . 4 4 . 1 . 5 6 2 1 4 1 . . 7 . Terminals 31 | . 7 . . . 4 4 . . . 3 6 2 . 4 1 . . . . Fabricators . | . . . . . . . . . . . . . . . . . . . . Repair Stations 1 | . . . . . . . . . . 1 . . . . . . . . . Recycling Units 1 | . 1 . . . . . . . . . . . . . . . . . . Scanalyzers . | . . . . . . . . . . . . . . . . . . . . Garrison Access 1 | . . . . . . . . . . 1 . . . . . . . . . Total Hacks 140 | . 26 . 2 . 9 10 . 8 . 15 15 3 25 17 2 . . 8 . Successful 102 | . 19 . 2 . 5 5 . 8 . 9 8 3 25 10 . . . 8 . Failed 38 | . 7 . . . 4 5 . . . 6 7 . . 7 2 . . . . Catastrophic 5 | . 1 . . . 1 1 . . . . . . . 1 1 . . . . Database Lockouts . | . . . . . . . . . . . . . . . . . . . . Manual 48 | . 13 . 1 . 5 6 . 1 . 3 5 2 . 12 . . . . . Terminals 90 | . 25 . . . 9 10 . . . 9 15 3 . 17 2 . . . . Fabricators . | . . . . . . . . . . . . . . . . . . . . Repair Stations 4 | . . . . . . . . . . 4 . . . . . . . . . Recycling Units 1 | . 1 . . . . . . . . . . . . . . . . . . Scanalyzers . | . . . . . . . . . . . . . . . . . . . . Garrison Access 2 | . . . . . . . . . . 2 . . . . . . . . . Terminal Hacks 84 | . 13 . 2 . 4 5 . 8 . 4 6 3 25 6 . . . 8 . Record 35 | . . . 1 . . . . . . . . 2 25 . . . . 7 . Part Schematic 8 | . . . . . . . . 8 . . . . . . . . . . . Robot Analysis 4 | . 3 . . . . . . . . . . . . 1 . . . . . Prototype ID Bank 4 | . 3 . . . . 1 . . . . . . . . . . . . . Open Door 6 | . . . . . . . . . . 1 3 1 . . . . . 1 . Level Access Points 1 | . . . . . . . . . . . . . . 1 . . . . . Branch Access Points 2 | . . . . . . 1 . . . 1 . . . . . . . . . Terminal Index 7 | . 1 . . . 2 1 . . . 1 1 . . 1 . . . . . Unreport Threat 1 | . . . . . 1 . . . . . . . . . . . . . . Locate Traps 11 | . 4 . . . 1 2 . . . 1 2 . . 1 . . . . . Recall Reinforcements 1 | . 1 . . . . . . . . . . . . . . . . . . Hauler Manifests 1 | . 1 . . . . . . . . . . . . . . . . . . Zone Layout 2 | . . . . . . . . . . . . . . 2 . . . . . EX-Prototype ID Bank 1 | . . . 1 . . . . . . . . . . . . . . . . Fabricator Hacks . | . . . . . . . . . . . . . . . . . . . . Repair Station Hacks 4 | . . . . . . . . . . 4 . . . . . . . . . Scan Component 2 | . . . . . . . . . . 2 . . . . . . . . . Repair 2 | . . . . . . . . . . 2 . . . . . . . . . Recycling Unit Hacks . | . . . . . . . . . . . . . . . . . . . . Scanalyzer . | . . . . . . . . . . . . . . . . . . . . Garrison Access Hacks 1 | . . . . . . . . . . 1 . . . . . . . . . Seal Access 1 | . . . . . . . . . . 1 . . . . . . . . . Unauthorized Hacks 13 | . 6 . . . 1 . . . . . 2 . . 4 . . . . . Terminals 12 | . 5 . . . 1 . . . . . 2 . . 4 . . . . . Track 2 | . 2 . . . . . . . . . . . . . . . . . . Botnet 6 | . 2 . . . . . . . . . 1 . . 3 . . . . . Operators 4 | . 1 . . . 1 . . . . . 1 . . 1 . . . . . Fabricators . | . . . . . . . . . . . . . . . . . . . . Repair Stations . | . . . . . . . . . . . . . . . . . . . . Recycling Units 1 | . 1 . . . . . . . . . . . . . . . . . . Tunnel 1 | . 1 . . . . . . . . . . . . . . . . . . Scanalyzers . | . . . . . . . . . . . . . . . . . . . . Garrison Access . | . . . . . . . . . . . . . . . . . . . . Data Cores Recovered . | . . . . . . . . . . . . . . . . . . . . Used . | . . . . . . . . . . . . . . . . . . . . Hacking Detections 24 | . 5 . . . 4 4 . . . 2 4 . . 4 1 . . . . Full Trace Events 2 | . . . . . 1 . . . . 1 . . . . . . . . . Feedback Events . | . . . . . . . . . . . . . . . . . . . . Feedback Blocked . | . . . . . . . . . . . . . . . . . . . . Robot Schematics Acquired . | . . . . . . . . . . . . . . . . . . . . Robots Built . | . . . . . . . . . . . . . . . . . . . . Matter . | . . . . . . . . . . . . . . . . . . . . Time . | . . . . . . . . . . . . . . . . . . . . Total Robot Build Rating . | . . . . . . . . . . . . . . . . . . . . Part Schematics Acquired 8 | . . . . . . . . 8 . . . . . . . . . . . Parts Built . | . . . . . . . . . . . . . . . . . . . . Matter . | . . . . . . . . . . . . . . . . . . . . Time . | . . . . . . . . . . . . . . . . . . . . Total Part Build Rating . | . . . . . . . . . . . . . . . . . . . . Parts Repaired 1 | . . . . . . . . . . 1 . . . . . . . . . Time 88 | . . . . . . . . . . 88 . . . . . . . . . Parts Recycled . | . . . . . . . . . . . . . . . . . . . . Recycled Matter . | . . . . . . . . . . . . . . . . . . . . Retrieved Matter . | . . . . . . . . . . . . . . . . . . . . Retrieved Components . | . . . . . . . . . . . . . . . . . . . . Parts Scanalyzed . | . . . . . . . . . . . . . . . . . . . . Part Schematics Acquired . | . . . . . . . . . . . . . . . . . . . . Parts Damaged . | . . . . . . . . . . . . . . . . . . . . Bothacking | -11 -10 -10 -10 -9 -8 -7 -7 -6 -5 -5 -5 -5 -5 -5 -4 -4 -4 -4 -3 ------------ Run | Scr Mat Min Exi Min Mat Fac Low Zio Pro Fac Ext Cet Arc Hub Fac Upp Upp War Pro Used RIF Installer . | . . . . . . . . . . . . . . . . . . . . Robots Hacked . | . . . . . . . . . . . . . . . . . . . . Non-combat . | . . . . . . . . . . . . . . . . . . . . Combat . | . . . . . . . . . . . . . . . . . . . . Robot Hacks Applied . | . . . . . . . . . . . . . . . . . . . . Relay Couplers Released . | . . . . . . . . . . . . . . . . . . . . Robots Rewired 12 | . . . . . . . . . . . 9 . . . . . . 3 . Allies Hacked . | . . . . . . . . . . . . . . . . . . . . Hacks Repelled . | . . . . . . . . . . . . . . . . . . . . Allies | -11 -10 -10 -10 -9 -8 -7 -7 -6 -5 -5 -5 -5 -5 -5 -4 -4 -4 -4 -3 -------- Run | Scr Mat Min Exi Min Mat Fac Low Zio Pro Fac Ext Cet Arc Hub Fac Upp Upp War Pro Total Allies 22 | . . . . . . . . . . . 14 5 . . . . . 3 . Largest Group 12 | . . . . . . . . . . . 12 12 9 8 . . . 3 . Highest-Rated Group 614 | . . . . . . . . . . . 447 614 614 458 . . . 155 . Highest-Rated Ally 156 | . . . . . . . . . . . 156 156 149 94 . . . 60 . Total Orders 5 | . . . . . . . . . 2 3 . . . . . . . . . EXPLORE 2 | . . . . . . . . . 1 1 . . . . . . . . . RETURN 3 | . . . . . . . . . 1 2 . . . . . . . . . Ally Attacks 213 | . . . . . . . . . . . 73 68 17 47 . . . 8 . Total Damage 5706 | . . . . . . . . . . . 1444 1758 621 1751 . . . 132 . Kills 31 | . . . . . . . . . . . 10 9 1 10 . . . 1 . Allies Corrupted 2 | . . . . . . . . . . . 1 . . 1 . . . . . Allies Melted . | . . . . . . . . . . . . . . . . . . . . Intel | -11 -10 -10 -10 -9 -8 -7 -7 -6 -5 -5 -5 -5 -5 -5 -4 -4 -4 -4 -3 ------- Run | Scr Mat Min Exi Min Mat Fac Low Zio Pro Fac Ext Cet Arc Hub Fac Upp Upp War Pro Robot Analysis Total 4 | . 3 . . . . . . . . . . . . 1 . . . . . Derelict Logs Recovered 7 | . . 1 . 1 . . . 2 2 . . . . . . 1 . . . Drone Launches 4 | . . . . . . . . . 1 3 . . . . . . . . . Drone Recoveries 4 | . . . . . . . . . 1 3 . . . . . . . . . Exploration | -11 -10 -10 -10 -9 -8 -7 -7 -6 -5 -5 -5 -5 -5 -5 -4 -4 -4 -4 -3 ------------- Run | Scr Mat Min Exi Min Mat Fac Low Zio Pro Fac Ext Cet Arc Hub Fac Upp Upp War Pro Turns Passed 12689 | 67 1072 241 232 371 1295 1976 3 1109 405 797 1033 310 172 296 438 468 436 1573 395 Spaces Moved 7834 | 47 611 174 298 482 646 1003 3 916 283 418 578 192 83 155 287 280 267 962 149 Core 154 | 5 . 1 . . . . . . . . . . . . . . . 5 143 Treads 1110 | . . 10 . . 292 476 . . . . 98 . 70 114 . 8 27 15 . Legs 678 | 42 611 25 . . . . . . . . . . . . . . . . . Wheels 4698 | . . . . . 78 527 3 916 283 418 480 192 13 41 287 272 240 942 6 Hover 1194 | . . 138 298 482 276 . . . . . . . . . . . . . . Flight . | . . . . . . . . . . . . . . . . . . . . Fastest Speed 50 | 50 120 76 76 76 76 120 120 120 110 120 130 130 130 130 130 130 130 50 50 Average Speed 131 | 112 140 101 76 76 142 173 120 120 116 123 140 130 172 166 130 135 143 140 51 Slowest Speed 750 | 120 180 750 76 76 210 230 120 120 120 130 192 130 180 180 130 180 180 250 90 Overloaded Moves . | . . . . . . . . . . . . . . . . . . . . Propulsion Burnouts . | . . . . . . . . . . . . . . . . . . . . Robots Hopped . | . . . . . . . . . . . . . . . . . . . . Cave-ins Triggered . | . . . . . . . . . . . . . . . . . . . . Exploration Rate (%) 47 | 4 83 18 70 93 52 27 5 84 50 11 65 77 79 22 9 48 45 91 21 Regions Visited 19 Branch Regions 14 Pre-discovered Areas 9 | . 1 1 1 1 . . . 5 . . . . . . . . . . . Known Exits Taken 4 | . . . . . . 1 . . 1 1 . . . 1 . . . . . Unknown Exits Taken 15 | 1 1 1 1 1 1 . 1 1 . . 1 1 1 . 1 1 1 1 . Scrap Searched 11 | . . . . 2 . . . 3 4 . . . . . . . 2 . . Spaces Dug 92 | . . . . 6 . 1 . . . 16 62 . . 6 . . . 1 . Terrain Destroyed 970 | . . . . 6 36 55 . . . 80 160 . 4 192 51 104 36 246 . Melee 2 | . . . . . . 1 . . . 1 . . . . . . . . . Projectile 76 | . . . . . 8 2 . . . . 8 . 4 18 2 20 7 7 . AOE 892 | . . . . 6 28 52 . . . 79 152 . . 174 49 84 29 239 . Terrain Rammed . | . . . . . . . . . . . . . . . . . . . . Walls Destroyed . | . . . . . . . . . . . . . . . . . . . . Machines Disabled . | . . . . . . . . . . . . . . . . . . . . Actions | -11 -10 -10 -10 -9 -8 -7 -7 -6 -5 -5 -5 -5 -5 -5 -4 -4 -4 -4 -3 --------- Run | Scr Mat Min Exi Min Mat Fac Low Zio Pro Fac Ext Cet Arc Hub Fac Upp Upp War Pro Total 9619 | 58 734 206 305 484 905 1152 2 927 319 656 757 243 98 180 345 338 305 1141 464 Wait 908 | . 30 . . . 113 45 . . 1 187 69 28 10 11 47 36 19 3 309 Move 7815 | 46 610 173 297 481 645 1002 2 915 282 417 577 191 82 154 286 279 266 961 149 Hop . | . . . . . . . . . . . . . . . . . . . . Pick Up 89 | 6 18 2 2 . 20 7 . 4 4 12 4 2 . 1 2 . 2 3 . Fast Attach 64 | 6 3 2 . . 11 7 . 1 3 4 5 7 . 2 1 1 2 8 1 Attach 31 | . . 3 . . 4 3 . 1 3 4 . . . . 1 2 1 7 2 Detach 16 | . . 2 . . 3 . . . 1 . 2 . . 2 . . 3 2 1 Swap 65 | . 7 3 2 2 17 11 . 1 2 2 4 1 . 2 1 3 4 3 . Drop 108 | . 14 1 4 . 27 16 . 5 3 5 11 9 . 3 2 . 1 7 . Fire 297 | . 52 20 . 1 65 41 . . . 24 25 5 5 5 5 17 7 25 . Melee 27 | . . . . . . 4 . . 20 1 . . . . . . . . 2 Ram . | . . . . . . . . . . . . . . . . . . . . Kick . | . . . . . . . . . . . . . . . . . . . . Crush 1 | . . . . . . . . . . . . . 1 . . . . . . Escape Stasis 32 | . . . . . . 16 . . . . 16 . . . . . . . . Rewire 166 | . . . . . . . . . . . 44 . . . . . . 122 . Trap . | . . . . . . . . . . . . . . . . . . . . Miscellaneous . | . . . . . . . . . . . . . . . . . . . . Route ------- -11/Scrapyard -10/Materials (discovered 5 exits: [*Mat x3] / [*Min x2]) -10/Mines -10/Exiles -9/Mines (discovered 2 exits: *Mat x2) -8/Materials (discovered 2 exits: *Fac x2) -7/Factory (discovered 2 exits: *Low x2) -7/Lower Caves -6/Zion -5/Proximity Caves -5/Factory (discovered 4 exits: Upp x2 / *Ext x2) -5/Extension (discovered 2 exits: *Fac / *Cet) -5/Cetus -5/Archives (discovered 2 exits: *Hub x2) -5/Hub_04(d) (discovered 4 exits: *Fac x4) -4/Factory -4/Upper Caves -4/Upper Caves (discovered 2 exits: [*Res] / *War) -4/Warlord -3/Proximity Caves History --------- Turn | Location | Event 3 | -11/Scrapyard | Discovered new exit (range 15) 68 | -11/Scrapyard | Entered Materials 291 | -10/Materials | Discovered new exit (range 4) 296 | -10/Materials | Discovered new exit (range 16) 302 | -10/Materials | Build established: Mutant 430 | -10/Materials | Discovered new exit (range 14) 737 | -10/Materials | Discovered new exit (range 16) 1124 | -10/Materials | Discovered new exit (range 7) 1140 | -10/Materials | Entered Mines 1199 | -10/Mines | Assembled infested the area 1204 | -10/Mines | Assisted by a Guerilla fighting off Assembled 1255 | -10/Mines | Lost 3 parts (2n1w) 1317 | -10/Mines | Deemed a non-threat by the Exiles lab entrance 1317 | -10/Mines | Discovered new exit (range 5) 1381 | -10/Mines | Entered Exiles 1400 | -10/Exiles | Met 8R-AWN 1413 | -10/Exiles | Met EX-HEX 1454 | -10/Exiles | Met EX-DEC 1466 | -10/Exiles | Learned location of Zion (-6) 1483 | -10/Exiles | Met EX-BIN 1493 | -10/Exiles | Aligned with FarCom system 1494 | -10/Exiles | Given EX-Vault access code 1513 | -10/Exiles | Opened EX-Vault 1522 | -10/Exiles | Found PSU Rigger 1539 | -10/Exiles | Warned to stay clear of 0b10 Research branches 1607 | -10/Exiles | Discovered new exit (range 10) 1613 | -10/Exiles | Left Exiles lab with PSU Rigger 1613 | -10/Exiles | Entered Mines 1784 | -9/Mines | Learned location of Recycling (-9) 1807 | -9/Mines | Discovered new exit (range 14) 1892 | -9/Mines | Discovered new exit (range 6) 1984 | -9/Mines | Entered Materials 1984 | -8/Materials | Evolved 4 slots: Weapon x4 2282 | -8/Materials | Build established: Executioner 2287 | -8/Materials | Discovered new exit (range 14) 3002 | -8/Materials | Discovered new exit (range 16) 3279 | -8/Materials | Entered Factory 3279 | -7/Factory | Evolved 2 slots: Utility x2 4122 | -7/Factory | Garrison activated, responded to threat 4959 | -7/Factory | Identified exit to Lower Caves 5117 | -7/Factory | Build established: Mutant 5255 | -7/Factory | Entered Lower Caves 5256 | -7/Lower Caves | A Derelict revealed a hidden shortcut to a safe place 5258 | -7/Lower Caves | Entered Zion 5359 | -6/Zion | Visited the Megawrench Repair Shop 5363 | -6/Zion | Megawrench repaired 8 parts 5373 | -6/Zion | Discovered new exit (range 13) 5454 | -6/Zion | System corruption cleaned by Quarantine Array 5543 | -6/Zion | Learned location of Armory (-4) 5647 | -6/Zion | Build established: Tank 5800 | -6/Zion | Received a visual enhancement algorithm 5966 | -6/Zion | Learned Factory security intel 6089 | -6/Zion | Learned location of Warlord (-4) 6194 | -6/Zion | Found CR-A16's Pointy Stick 6367 | -6/Zion | Entered Proximity Caves 6432 | -5/Proximity Caves | Identified exit to Factory 6561 | -5/Proximity Caves | Spotted B-75 Beast 6644 | -5/Proximity Caves | Destroyed B-75 Beast 6657 | -5/Proximity Caves | Lost 7 parts (1p1u5w) 6754 | -5/Proximity Caves | Learned Factory trap positions 6772 | -5/Proximity Caves | Entered Factory 6772 | -5/Factory | Evolved 4 slots: Propulsion x2, Utility x2 6773 | -5/Factory | Loaded intel: 99 trap records 6830 | -5/Factory | Repaired Arm. Huge Wheel 7068 | -5/Factory | Identified exit to Upper Caves 7068 | -5/Factory | Identified exit to Extension 7163 | -5/Factory | Build established: Derelict-Mutant 7349 | -5/Factory | Destroyed 7 combat bots 7569 | -5/Factory | Entered Extension 8322 | -5/Extension | Rescued a captive Derelict 8323 | -5/Extension | Rescued a captive Derelict 8336 | -5/Extension | Rescued A7 8441 | -5/Extension | Rescued a captive Derelict 8442 | -5/Extension | Rescued a captive Derelict 8574 | -5/Extension | Discovered new exit (range 10) 8575 | -5/Extension | Discovered new exit (range 6) 8602 | -5/Extension | Entered Cetus 8602 | -5/Cetus | Accompanied by 12 allies (A7) 8607 | -5/Cetus | Acquired a Cetus Manufacturing Module code from A7 8620 | -5/Cetus | Spotted Cetus Guard 8620 | -5/Cetus | Spotted Cetus Guard 8623 | -5/Cetus | Spotted Cetus Guard 8626 | -5/Cetus | Spotted Cetus Guard 8642 | -5/Cetus | Destroyed Cetus Guard 8647 | -5/Cetus | Allies destroyed Cetus Guard 8648 | -5/Cetus | Allies destroyed Cetus Guard 8653 | -5/Cetus | Allies destroyed Cetus Guard 8748 | -5/Cetus | Started Cetus Manufacturing Module 8763 | -5/Cetus | Escorted A7 to Cetus Mainframe 8773 | -5/Cetus | Manufactured an Enhanced Grunt 8798 | -5/Cetus | Manufactured an Enhanced Grunt 8823 | -5/Cetus | Manufactured an Enhanced Grunt 8837 | -5/Cetus | Found Prototype Device 8837 | -5/Cetus | Identified Exp. Thermal Shield 8848 | -5/Cetus | Manufactured an Enhanced Grunt 8873 | -5/Cetus | Manufactured an Enhanced Grunt 8873 | -5/Cetus | Discovered new exit (range 16) 8912 | -5/Cetus | Entered Archives 8912 | -5/Archives | Accompanied by 9 allies (A7) 8917 | -5/Archives | Received a hacking code to weaken MAIN.C 8971 | -5/Archives | Unable to access archive contents 8975 | -5/Archives | Discovered new exit (range 16) 9031 | -5/Archives | Unable to access archive contents 9036 | -5/Archives | Discovered new exit (range 15) 9049 | -5/Archives | Unable to access archive contents 9084 | -5/Archives | Entered Hub_04(d) 9084 | -5/Hub_04(d) | Accompanied by 8 allies 9117 | -5/Hub_04(d) | Build established: Scavenger-Executioner 9136 | -5/Hub_04(d) | Identified exit to Factory 9324 | -5/Hub_04(d) | Network Hub disabled 9380 | -5/Hub_04(d) | Entered Factory 9380 | -4/Factory | Evolved 2 slots: Power x1, Utility x1 9617 | -4/Factory | Discovered new exit (range 18) 9818 | -4/Factory | Entered Upper Caves 9908 | -4/Upper Caves | Learned Research trap positions 10011 | -4/Upper Caves | Attracted the attention of an 0b10 checkpoint 10057 | -4/Upper Caves | Destroyed 7 combat bots 10257 | -4/Upper Caves | Discovered new exit (range 11) 10286 | -4/Upper Caves | Entered another Upper Caves area 10325 | -4/Upper Caves | Discovered new exit (range 15) 10563 | -4/Upper Caves | Build established: Scavenger-Mutant 10711 | -4/Upper Caves | Discovered new exit (range 8) 10722 | -4/Upper Caves | Entered Warlord 10804 | -4/Warlord | Discovered new exit (range 9) 10869 | -4/Warlord | System corruption cleaned by Quarantine Array 10881 | -4/Warlord | Build established: Scavenger-Executioner 11258 | -4/Warlord | Met Warlord 11283 | -4/Warlord | Warlord's base attacked by MAIN.C 11632 | -4/Warlord | Found Prototype Launcher 11632 | -4/Warlord | Identified Vortex Catalyst Activator 11633 | -4/Warlord | Warlord forces counterattacked 11636 | -4/Warlord | Found Prototype Energy Gun 11636 | -4/Warlord | Identified Vortex Rifle 11639 | -4/Warlord | Found Vortex Rifle 11918 | -4/Warlord | Build established: Scavenger-Mutant 11930 | -4/Warlord | P-80 Master assimilated allied Sentinel 7a 11942 | -4/Warlord | Spotted B-90 Cyclops 11958 | -4/Warlord | Warlord base infiltrated, sounded retreat 11964 | -4/Warlord | Destroyed 10 combat bots 11969 | -4/Warlord | Spotted Striker 11990 | -4/Warlord | Destroyed Striker 12271 | -4/Warlord | Spotted Executioner 12283 | -4/Warlord | Spotted Executioner 12286 | -4/Warlord | Spotted Striker 12293 | -4/Warlord | Released all parts (2) 12295 | -4/Warlord | Entered Proximity Caves 12323 | -3/Proximity Caves | Lost 14 parts (1p3n3u7w) 12550 | -3/Proximity Caves | Build established: Mutant 12652 | -3/Proximity Caves | Core integrity fell below 50% 12677 | -3/Proximity Caves | Core integrity fell below 20% 12682 | -3/Proximity Caves | Spotted B-86 Titan 12690 | -3/Proximity Caves | Destroyed by S-43 Plague with Heavy Machine Gun Last Messages --------------- GOAL=ESCAPE 12327_ Slug penetrates O2-1WV(i). 12651_ Acquired Arm. Wheel. 12651_ Slug penetrates Wall. 12651_ Penetrated by Slug. 12651_ Slug penetrates Wall. 12653_ Acquired 66 matter. 12655_ Penetrated by Slug. 12658_ H-77 Assassin Hpw. Shotgun severed. 12660_ Penetrated by Slug. 12660_ Slug penetrates Wall. 12660_ Penetrated by Slug. 12660_ Phasing Sabre destroyed. 12663_ Penetrated by Slug. 12663_ Arm. Wheel destroyed. 12663_ Slug penetrates Wall. 12663_ Acquired 6 matter. 12664_ Penetrated by Slug. 12664_ Slug penetrates Wall. [Achievement: Overachiever] Map ----- +----------------------------------------------------+ | ?????????????????????????????????????????????????? | | ?????????????????????????????????????????????????? | | ?????????????????????????????????????????????????? | | ?????????????????????????????????????????????????? | | ?????????????????????????????????????????????????? | | ?????????????????????????????????????????????????? | | ?????????????????????????????????????????????????? | | ?????????????????????????????????????????????????? | | ?????????????????????????????????????????????????? | | ?????????????????????????????????????????????????? | | ?????????????????????????????????????????????????? | | ?????????????????????????????????????????????????? | | ?????????????????????????????????????????????????? | | ?????????????????????????????????????????????????? | | ?????????????????????????????????????????????????? | | ?????????????????????????????????????????????????? | | ?????????????????????????????????????????????????? | | ?????????????????????????????????????????????????? | | ?????????????????????????????????????????????????? | | ?????????????????????????????????????????????????? | | ?????????????????????????????????????????????????? | | ?????????????????????????????????????????????????? | | #######????????????######????????????????????????? | | ##?????####### ####????????????????????? | | ##? ##??###??????????????? | | #? @ ### ##?????????????? | | ## ## #??????# ## #?????????????? | | ?# #??????????## ???## #??????? ?????? | | ?# ##??????????# ??## ##?????? ????? | | ?# ##?????????## ## ###?????? #???? | | ## ##??????????# s##??????? #???? | | # ##?########### s#??????? #???? | | # ### ## ##?## ## s##?##?? #????? | | # ### ######?## ## ## #????? | | ###??# #????### #????? | | ?????# ### ##???##### #?????? | | ?????# #### ###### #### #?????? | | ?????# #??# ### ### #?????? | | ?????# #??# ##???? #????? | | ???? ??# ###### #????????????? | | ?? ## #????### #???????????? | | ?# #?# #??????## #??????????? | | # #?# #???????## #??????????? | | ##?# ????????## ######??????????? | | ### ### #?? ????????###???????????????? | | ?#??###??### ?? ??????????????????????????? | | ???????????# ? #?????????????????????????? | | ###????????? ??### #?????????????????????????? | | #????????? ?????? ?????????????????????????? | | # #????????????????? ?????????????????????????? | +----------------------------------------------------+ Best States ------------- Heat Dissipation 45 Coolant Potential 65 Energy Generation 31 Energy Capacity 650 Matter Stores 300 Matter Capacity 300 Sight Range 16 Terrain Scan Range 24 Terrain Scan Density 10 Armor Coverage 825 Resistance: TH 15 Weapon Cycling 15 Evasion (%) 50 Targeting Accuracy 6 Recoil Reduction 2 Kinecelleration 40 Overload Amplification 50 Offensive Hacking 23 Item Schematics ----------------- Riot Gun | -6/Zion | Free Hvy. Riot Gun | -6/Zion | Free Battle Rifle | -6/Zion | Free Battle Cannon | -6/Zion | Free Bore Cannon | -6/Zion | Free Enh. Flamer | -6/Zion | Free Plasma Flamer | -6/Zion | Free Ripper | -6/Zion | Free Robot Schematics ------------------ None Fabricated ------------ Nothing Alien Tech Used ----------------- None Achievements -------------- Charge!!! Collateral Damage Main Advantage Overachiever Project G-00 Challenges ------------ None Game ------ Seed AdvancedControlPick Manual? 0 Play Time 02:55:00 Cumulative 115.1 hours Start 2021.03.09 @ 10:10:13 End 2021.03.20 @ 14:14:46 Sessions 11 Manual Loads 0 Difficulty Rogue Special Mode None Game No. 38 Rogue 38 Adventurer 0 Explorer 0 Win Type - Total 3 Types 2/0/0/1/0/0/0/0/0 Lore% 59 Gallery% 66 Achievement% 51 Wizard Run 0 Options --------- ASCII 1 Keyboard 1 Movement Vi Keybinds 0 Fullscreen 2 Font 24/Proggy Map View 76x50 Tactical HUD 1 Map Filters NONE Filters NONE Steam 1 RUN: c1d76520-9cf0-4f70-a578-a1980cb25d6f